Body Name,Body,Service Level,Expense Type,Expense Code,Narrative,Date,Transaction Number,Amount,Capital and Revenue,Supplier Name,Supplier ID
South Ribble Council,http://statistics.data.gov.uk/doc/local-authority/30UN,Regeneration,Other Misc,4851,"Opening of St Catherine`s Park 12th May 2016 2BR Stage, Presenter and 2 x promo plus PA",15/07/2016,0000425383,"1,750.00",Revenue,107 The Bee,131130
South Ribble Council,http://statistics.data.gov.uk/doc/local-authority/30UN,Property Services,Rep & Maint Premises,2020,Please provide drawings for Leyland Market as discussed with property services,20/07/2016,0000425560,150.00,Revenue,4DCAD Ltd,131995
South Ribble Council,http://statistics.data.gov.uk/doc/local-authority/30UN,Property Services,Rep & Maint Premises,2020,Please provide drawings for Worden park as discussed with property services,20/07/2016,0000425560,750.00,Revenue,4DCAD Ltd,131995
South Ribble Council,http://statistics.data.gov.uk/doc/local-authority/30UN,Housing,Contributions,4730,Supply and Install insulation measure as part of the winter warmth scheme,01/07/2016,0000425201,286.50,Revenue,A & M INSULATIONS LTD,00078414
South Ribble Council,http://statistics.data.gov.uk/doc/local-authority/30UN,Information Services,Peripherals,4248,Provision of services - Hosting for Accent Foundation for period 01/07/16 - 30/06/17,20/07/2016,0000425574,"3,614.00",Revenue,ABRITAS LTD,130710
South Ribble Council,http://statistics.data.gov.uk/doc/local-authority/30UN,Information Services,Peripherals,4248,Provision of services - Hosting for SRBC for period 01/07/16 - 30/06/17,20/07/2016,0000425575,"8,306.00",Revenue,ABRITAS LTD,130710
South Ribble Council,http://statistics.data.gov.uk/doc/local-authority/30UN,Information Services,Peripherals,4248,Provision of services - Hosting for New Progress for period 01/07/16-30/06/17,20/07/2016,0000425576,"3,614.00",Revenue,ABRITAS LTD,130710
South Ribble Council,http://statistics.data.gov.uk/doc/local-authority/30UN,Information Services,Peripherals,4247,Galaxy Note 4 32GB (Gold only),08/07/2016,0000425329,"1,246.50",Revenue,ACS SYSTEMS UK LTD,00070166
South Ribble Council,http://statistics.data.gov.uk/doc/local-authority/30UN,Area 2 - Waste Transport/Eastern & Central Teams,External Contractors Charges,4570,Spec repair - AE12AXR - JFC6948 - PD,06/07/2016,0000425242,276.80,Revenue,AEBI SCHMIDT UK LTD,00085672
South Ribble Council,http://statistics.data.gov.uk/doc/local-authority/30UN,Area 2 - Waste Transport/Eastern & Central Teams,External Contractors Charges,4570,WORKSHOP TOOLS AND EQUIPMENT CALIBRATION,06/07/2016,0000425143,472.00,Revenue,Air Tool Services,131966
South Ribble Council,http://statistics.data.gov.uk/doc/local-authority/30UN,Revenues Plus,Financial,4811,post office trans,08/07/2016,0000425326,"1,276.22",Revenue,ALLPAY LTD,00122276
South Ribble Council,http://statistics.data.gov.uk/doc/local-authority/30UN,Revenues Plus,Financial,4811,paypoint,08/07/2016,0000425326,185.07,Revenue,ALLPAY LTD,00122276
South Ribble Council,http://statistics.data.gov.uk/doc/local-authority/30UN,Revenues Plus,Financial,4811,webconn,08/07/2016,0000425326,46.05,Revenue,ALLPAY LTD,00122276
South Ribble Council,http://statistics.data.gov.uk/doc/local-authority/30UN,Property Services,Energy Costs,2303,2016 / 2017 annual metering cost for the Civic centre,06/07/2016,0000424114,432.00,Revenue,AMEY,130438
South Ribble Council,http://statistics.data.gov.uk/doc/local-authority/30UN,Development Enterprise & Comm Mgnt,Other Misc,4861,"Printing of 2000 Heritage leaflets Trim size  297mm x 210mm, 2 sheets half folded and stapled = A5 8 page folded leaflet",06/07/2016,0000425254,300.00,Revenue,AMJ LTD (THE STATIONERY STORE),00096946
South Ribble Council,http://statistics.data.gov.uk/doc/local-authority/30UN,Housing,Cap Grant- Improve Grants,C570,DFG Works Wet room works at ADDRESS REDACTED,13/07/2016,0000425395,"2,531.84",Revenue,APG DOMESTIC SERVICES,00061463
South Ribble Council,http://statistics.data.gov.uk/doc/local-authority/30UN,Development Enterprise & Comm Mgnt,Other Misc,4851,"Consultancy fees as per Contract 1st of June and subsequent letter 18th May Co-Location Project June 2016 - 2000 July 2016 ",27/07/2016,0000425744,"2,000.00",Revenue,ARMSTRONG CONSULTING,131444
South Ribble Council,http://statistics.data.gov.uk/doc/local-authority/30UN,Development Enterprise & Comm Mgnt,Other Misc,4851,"Overnight security for Leyland Festival on Friday 17th June 2016 x2 men 13 hours x 2 (26 hours) x 10.00 = 260.00 x1 Roaming",01/07/2016,0000425183,743.00,Revenue,AVANTGUARD LTD,130106
South Ribble Council,http://statistics.data.gov.uk/doc/local-authority/30UN,Area 2 - Waste Transport/Eastern & Central Teams,Advertising,4842,"10,000 x A6 Post Cards (Cessation of food waste collections from terraced properties)5000 x A6 Brown Bin Contamination Cards",01/07/2016,0000424983,309.00,Revenue,B & D PRINT SERVICES LTD,00015134
South Ribble Council,http://statistics.data.gov.uk/doc/local-authority/30UN,Community Safety,Other Misc,4851,15000 COPIES OF SUMMER ACTIVITIES GUIDE BOOKLET AS PER YOUR QUOTATION 117148,20/07/2016,0000425200,"1,559.00",Revenue,B & D PRINT SERVICES LTD,00015134
South Ribble Council,http://statistics.data.gov.uk/doc/local-authority/30UN,Area 2 - Waste Transport/Eastern & Central Teams,Advertising,4842,"60,000 A6 Stickers - Food Waste removal from Brown Bin As per Quotation 116660",08/07/2016,0000425292,"1,761.00",Revenue,B & D PRINT SERVICES LTD,00015134
South Ribble Council,http://statistics.data.gov.uk/doc/local-authority/30UN,Area 2 - Waste Transport/Eastern & Central Teams,Advertising,4842,1500 X A6 Wheelie Bin Stickers (Authorised Additional Bin) As per quotation 118348,20/07/2016,0000425468,390.00,Revenue,B & D PRINT SERVICES LTD,00015134
South Ribble Council,http://statistics.data.gov.uk/doc/local-authority/30UN,Property Services,Rep & Maint Premises,2025,Please repair the lights & ceiling area following the flood at BBLC.,06/07/2016,0000425236,322.00,Revenue,BELEC ELECTRICAL LTD,130290
South Ribble Council,http://statistics.data.gov.uk/doc/local-authority/30UN,Property Services,Rep & Maint Premises,2020,carry out electrical test on Unit 17F Boxer Place. Supply and fit new distribution board and issue electrical safety certificate,06/07/2016,0000425239,619.37,Revenue,BELEC ELECTRICAL LTD,130290
South Ribble Council,http://statistics.data.gov.uk/doc/local-authority/30UN,Information Services,Peripherals,4248,Electrical Works associated with Generator installation,15/07/2016,0000425481,"1,459.29",Revenue,BELEC ELECTRICAL LTD,130290
South Ribble Council,http://statistics.data.gov.uk/doc/local-authority/30UN,Property Services,Rep & Maint Premises,2020,Please disconnect and make safe all electrics & fan system to the spray booth at Moss Side Depot prior to its demolition,29/07/2016,0000425558,589.02,Revenue,BELEC ELECTRICAL LTD,130290
South Ribble Council,http://statistics.data.gov.uk/doc/local-authority/30UN,Property Services,Rep & Maint Premises,2020,Annual Contract 2016/2017 Electrical Testing and Fan Convector Maintenance at Civic Centre,20/07/2016,0000425565,276.00,Revenue,BELEC ELECTRICAL LTD,130290
South Ribble Council,http://statistics.data.gov.uk/doc/local-authority/30UN,Property Services,Rep & Maint Premises,2020,Please assist property services to remove a pump and install a new one at the civic centre. take the pump to the repair centre.,20/07/2016,0000425635,398.80,Revenue,BELEC ELECTRICAL LTD,130290
South Ribble Council,http://statistics.data.gov.uk/doc/local-authority/30UN,Information Services,Peripherals,4248,2nd phase of generator installation,20/07/2016,0000425638,"1,035.00",Revenue,BELEC ELECTRICAL LTD,130290
South Ribble Council,http://statistics.data.gov.uk/doc/local-authority/30UN,Healthy Communities,Sports Dev Expenses,4894,Entertainment at Dance from the Heart in various schools. BMX Stunts and Tricks etc.,06/07/2016,0000425349,"2,212.50",Revenue,Ben Savage,131977
South Ribble Council,http://statistics.data.gov.uk/doc/local-authority/30UN,Scrutiny,Consultancy Fees,4541,"Tuscany 2 Function Room booked for Wednesday 22 June 2016 between 09:30  and 16.30 for 12 people, with unlimited Tea and",27/07/2016,0000425126,295.57,Revenue,BEST WESTERN PREMIER LEYLAND HOTEL,00090117
South Ribble Council,http://statistics.data.gov.uk/doc/local-authority/30UN,Healthy Communities,Sports Dev Expenses,4890,"SRBC Sports Awards 24 June 2016 Adult Meals 132 @ 22.50 = 2475.00 Children Meals 2 @ 12.50 = 25.00 Room Hire",27/07/2016,0000425503,"2,548.33",Revenue,BEST WESTERN PREMIER LEYLAND HOTEL,00090117
South Ribble Council,http://statistics.data.gov.uk/doc/local-authority/30UN,Legal,Legal,4821,This additional sum represents the payment of legal costs in respect of the national land charges litigation.,29/07/2016,0000425743,"17,668.46",Revenue,Bevan Brittan LLP,131453
South Ribble Council,http://statistics.data.gov.uk/doc/local-authority/30UN,Legal,Legal,4821,The sum represents the payment of legal costs in respect of the National Land Charges Litigation,29/07/2016,0000425821,"13,011.79",Revenue,Bevan Brittan LLP,131453
South Ribble Council,http://statistics.data.gov.uk/doc/local-authority/30UN,Regeneration,Capital Expenditure,C234,8 No. Information Panels Artwork to be supplied by SRBC,27/07/2016,0000425711,"2,353.00",Revenue,BORDER SIGNS AND GRAPHIX,130927
South Ribble Council,http://statistics.data.gov.uk/doc/local-authority/30UN,Healthy Communities,Other Misc,4851,Primary Schools Coaching at various schools April 2016 - July 2016,15/07/2016,0000425501,"1,170.00",Revenue,BROWNEDGE ST MARYS R C HIGH SCHOOL,00015707
South Ribble Council,http://statistics.data.gov.uk/doc/local-authority/30UN,Healthy Communities,Other Misc,4851,Primary Schools Coaching at various schools April 2016 - July 2016,15/07/2016,0000425502,580.00,Revenue,BROWNEDGE ST MARYS R C HIGH SCHOOL,00015707
South Ribble Council,http://statistics.data.gov.uk/doc/local-authority/30UN,Healthy Communities,Sports Dev Expenses,4894,1 x Upright Lockable Storage Trolley,20/07/2016,0000425488,437.00,Revenue,BROXAP LTD,00028736
South Ribble Council,http://statistics.data.gov.uk/doc/local-authority/30UN,Neighbourhood Admin & Support,Materials General,4040,FAST SET POST MIX 02110336,06/07/2016,0000425178,257.40,Revenue,C & W BERRY LTD,00015231
South Ribble Council,http://statistics.data.gov.uk/doc/local-authority/30UN,Area 3 - Parks/Leyland East West,Operational Furniture & Equip,4010,1 X SLIDING MITRE SAW,27/07/2016,0000425781,244.72,Revenue,C & W BERRY LTD,00015231
South Ribble Council,http://statistics.data.gov.uk/doc/local-authority/30UN,Area 3 - Parks/Leyland East West,Operational Furniture & Equip,4010,MITRE SAW STAND,27/07/2016,0000425781,75.23,Revenue,C & W BERRY LTD,00015231
South Ribble Council,http://statistics.data.gov.uk/doc/local-authority/30UN,Area 3 - Parks/Leyland East West,Operational Furniture & Equip,4010,"1 FAT MAX SAW (@8.00), 1 ROOFING SQUARE (@7.00) AND SLIDING BEVEL (@5.00)",27/07/2016,0000425781,26.02,Revenue,C & W BERRY LTD,00015231
South Ribble Council,http://statistics.data.gov.uk/doc/local-authority/30UN,Area 1 - Penwortham Western Parishes,External Contractors Charges,4570,"Service, Calibration and Battery Replacement of 3 SpIDS",15/07/2016,0000424887,582.00,Revenue,CA TRAFFIC LTD,00107602
South Ribble Council,http://statistics.data.gov.uk/doc/local-authority/30UN,Area 1 - Penwortham Western Parishes,External Contractors Charges,4570,Additional parts and repairs required,15/07/2016,0000424887,580.00,Revenue,CA TRAFFIC LTD,00107602
South Ribble Council,http://statistics.data.gov.uk/doc/local-authority/30UN,Environmental Health,Licence Fees,488B,mgmt fees,20/07/2016,0000425542,"1,125.00",Revenue,Carr Street Community Centre,130312
South Ribble Council,http://statistics.data.gov.uk/doc/local-authority/30UN,Planning,Professional Fees,4510,LDF recharge from Chorley BC,20/07/2016,0000425255,"1,374.15",Revenue,CHORLEY BOROUGH COUNCIL,00017352
South Ribble Council,http://statistics.data.gov.uk/doc/local-authority/30UN,Homelessness,Contractors Charges 5,5311,"NAME REDACTED- Cotswold House, rent, SRBC placement 25 days and from 2/06/16  26/06/16 but the daily rent is 35.28",15/07/2016,0000425497,882.00,Revenue,CHORLEY BOROUGH COUNCIL,00017352
South Ribble Council,http://statistics.data.gov.uk/doc/local-authority/30UN,Homelessness,Contractors Charges 5,5311,"NAME REDACTED rent, Cotswold House, SRBC placement 07/06/2016  03/07/2016, 28 days at 35.28 -  987.84 Total.",15/07/2016,0000425498,987.96,Revenue,CHORLEY BOROUGH COUNCIL,00017352
South Ribble Council,http://statistics.data.gov.uk/doc/local-authority/30UN,Homelessness,Contractors Charges 5,5311,"NAME REDACTED rent, Cotswold House, SRBC placement 07/06/2016  21/06/2016 inc, 15 days at 35.28 per day - 529.20 ",15/07/2016,0000425499,529.20,Revenue,CHORLEY BOROUGH COUNCIL,00017352
South Ribble Council,http://statistics.data.gov.uk/doc/local-authority/30UN,Shared Financial Services,External Contractors Charges,4570,Shared Financial Services April 2015 to March 2016,29/07/2016,0000425840,205.86,Revenue,CHORLEY BOROUGH COUNCIL,00017352
South Ribble Council,http://statistics.data.gov.uk/doc/local-authority/30UN,Shared Financial Services,External Contractors Charges,4570,Provision of Shared Financial Services for 2016/17,29/07/2016,0000425840,"150,000.00",Revenue,CHORLEY BOROUGH COUNCIL,00017352
South Ribble Council,http://statistics.data.gov.uk/doc/local-authority/30UN,Homelessness,Contractors Charges 5,5311,Blocked booking flat 20 Cotswold house 1st-31st July 2016,29/07/2016,0000425851,"1,093.68",Revenue,CHORLEY BOROUGH COUNCIL,00017352
South Ribble Council,http://statistics.data.gov.uk/doc/local-authority/30UN,Development Enterprise & Comm Mgnt,Other Misc,4851,Contribution to Chorley Pals Somme Memorial Concert 2nd July 2016,06/07/2016,0000425331,500.00,Revenue,Chorley Pals Memorial,131992
South Ribble Council,http://statistics.data.gov.uk/doc/local-authority/30UN,Area 2 - Waste Transport/Eastern & Central Teams,Materials General,4040,BREAK CALLOPER - PJ62UCL - JFC 6823,15/07/2016,0000425522,253.38,Revenue,CICELEY COMMERCIALS LTD,00059381
South Ribble Council,http://statistics.data.gov.uk/doc/local-authority/30UN,Area 3 - Parks/Leyland East West,Materials General,4040,1 A FRAME AND BUSHES - PO13 UUM - JFC6962 - AW,20/07/2016,0000425627,425.43,Revenue,CICELEY COMMERCIALS LTD,00059381
South Ribble Council,http://statistics.data.gov.uk/doc/local-authority/30UN,Area 2 - Waste Transport/Eastern & Central Teams,Materials General,4040,2 AIR BAGS - MX04YNL - JFC6954 - GA,27/07/2016,0000425791,257.92,Revenue,CICELEY COMMERCIALS LTD,00059381
South Ribble Council,http://statistics.data.gov.uk/doc/local-authority/30UN,HR & Communications,Advertising,4848,PHOTOGRAPHY FOR PICNIC IN THE PARK ON SUNDAY 12TH JUNE 2016,01/07/2016,0000425212,160.00,Revenue,CLIVE LAWRENCE PHOTOGRAPHY,00122166
South Ribble Council,http://statistics.data.gov.uk/doc/local-authority/30UN,HR & Communications,Advertising,4848,PHOTOGRAPHY FOR LEYLAND FESTIVAL ON SATURDAY 18TH JUNE 2016,01/07/2016,0000425212,260.00,Revenue,CLIVE LAWRENCE PHOTOGRAPHY,00122166
South Ribble Council,http://statistics.data.gov.uk/doc/local-authority/30UN,Healthy Communities,Other Misc,4851,Survey and drawing of an orienteering maps for the following schools and teaching packs: Phase 3Leyland Methodist Primary Sc,08/07/2016,0000425332,"1,120.00",Revenue,Cloughaman Maps,131671
South Ribble Council,http://statistics.data.gov.uk/doc/local-authority/30UN,Area 3 - Parks/Leyland East West,External Contractors Charges,4570,SUPPLY WEED & FEED TO FOOTBALL PITCHES IN SOUTH RIBBLE,13/07/2016,0000425052,"3,780.00",Revenue,COMPLETE WEED CONTROL (MERSEYSIDE),00076775
South Ribble Council,http://statistics.data.gov.uk/doc/local-authority/30UN,HR & Communications,Balance Sheet,0030,CHILDCARE VOUCHERS JULY 2016,27/07/2016,0000425722,"2,998.02",Revenue,COMPUTERSHARE VOUCHER SERVICES,00116499
South Ribble Council,http://statistics.data.gov.uk/doc/local-authority/30UN,Property Services,Rep & Maint Premises,2020,2016/2017 Annual Inspection of doors and windows at Bamber Bridge Leisure Centre,06/07/2016,0000425278,261.02,Revenue,COOPER BESPOKE JOINERY LTD,00104456
South Ribble Council,http://statistics.data.gov.uk/doc/local-authority/30UN,Property Services,Rep & Maint Premises,2020,2016/2017 Annual Inspection of doors and windows at Carr Street Community Centre,06/07/2016,0000425278,24.75,Revenue,COOPER BESPOKE JOINERY LTD,00104456
South Ribble Council,http://statistics.data.gov.uk/doc/local-authority/30UN,Property Services,Rep & Maint Premises,2020,2016/2017 Annual Inspection of doors and windows at Civic Centre,06/07/2016,0000425278,226.45,Revenue,COOPER BESPOKE JOINERY LTD,00104456
South Ribble Council,http://statistics.data.gov.uk/doc/local-authority/30UN,Property Services,Rep & Maint Premises,2020,2016/2017Annual Inspection of doors and windows at Higher Walton Community Centre,06/07/2016,0000425278,24.75,Revenue,COOPER BESPOKE JOINERY LTD,00104456
South Ribble Council,http://statistics.data.gov.uk/doc/local-authority/30UN,Property Services,Rep & Maint Premises,2020,2016/2017 Annual Inspection of doors and windows at Kingsfold Community Centre/Penwortham Town Council,06/07/2016,0000425278,24.75,Revenue,COOPER BESPOKE JOINERY LTD,00104456
South Ribble Council,http://statistics.data.gov.uk/doc/local-authority/30UN,Property Services,Rep & Maint Premises,2020,2016/2017Annual Inspection of doors and windows at Leyland Leisure Centre,06/07/2016,0000425279,297.75,Revenue,COOPER BESPOKE JOINERY LTD,00104456
South Ribble Council,http://statistics.data.gov.uk/doc/local-authority/30UN,Property Services,Rep & Maint Premises,2020,2016/2017 Annual Inspection of doors and windows at Leyland Market,06/07/2016,0000425279,24.75,Revenue,COOPER BESPOKE JOINERY LTD,00104456
South Ribble Council,http://statistics.data.gov.uk/doc/local-authority/30UN,Property Services,Rep & Maint Premises,2020,2016/2017Annual Inspection of doors and windows at Longton Brickcroft,06/07/2016,0000425279,33.00,Revenue,COOPER BESPOKE JOINERY LTD,00104456
South Ribble Council,http://statistics.data.gov.uk/doc/local-authority/30UN,Property Services,Rep & Maint Premises,2020,2016/2017 Annual Inspection of doors and windows at Moss Side Community Centre,06/07/2016,0000425279,16.50,Revenue,COOPER BESPOKE JOINERY LTD,00104456
South Ribble Council,http://statistics.data.gov.uk/doc/local-authority/30UN,Property Services,Rep & Maint Premises,2020,2016/2017 Annual Inspection of doors and windows at Moss Side Depot,06/07/2016,0000425279,106.50,Revenue,COOPER BESPOKE JOINERY LTD,00104456
South Ribble Council,http://statistics.data.gov.uk/doc/local-authority/30UN,Property Services,Rep & Maint Premises,2020,2016/2017 Annual Inspection of doors and windows at Museum,06/07/2016,0000425280,16.50,Revenue,COOPER BESPOKE JOINERY LTD,00104456
South Ribble Council,http://statistics.data.gov.uk/doc/local-authority/30UN,Property Services,Rep & Maint Premises,2020,2016/2017Annual Inspection of doors and windows at Penwortham Leisure Centre,06/07/2016,0000425280,46.50,Revenue,COOPER BESPOKE JOINERY LTD,00104456
South Ribble Council,http://statistics.data.gov.uk/doc/local-authority/30UN,Property Services,Rep & Maint Premises,2020,2016/2017Annual Inspection of doors and windows at Public Conveniences,06/07/2016,0000425280,57.75,Revenue,COOPER BESPOKE JOINERY LTD,00104456
South Ribble Council,http://statistics.data.gov.uk/doc/local-authority/30UN,Property Services,Rep & Maint Premises,2020,2016/2017Annual Inspection of doors and windows at Sports Pavillions at Moss Side and Holland House,06/07/2016,0000425280,66.00,Revenue,COOPER BESPOKE JOINERY LTD,00104456
South Ribble Council,http://statistics.data.gov.uk/doc/local-authority/30UN,Property Services,Rep & Maint Premises,2020,2016/2017 Annual Inspection of doors and windows at Tennis Centre,06/07/2016,0000425280,85.95,Revenue,COOPER BESPOKE JOINERY LTD,00104456
South Ribble Council,http://statistics.data.gov.uk/doc/local-authority/30UN,Property Services,Rep & Maint Premises,2020,2016/2017 Annual Inspection of doors and windows at Worden Arts Centre,06/07/2016,0000425280,41.25,Revenue,COOPER BESPOKE JOINERY LTD,00104456
South Ribble Council,http://statistics.data.gov.uk/doc/local-authority/30UN,Property Services,Rep & Maint Premises,2020,"Please attend Worden Park Greenhouse , replace 2 broken windows",06/07/2016,0000425282,99.00,Revenue,COOPER BESPOKE JOINERY LTD,00104456
South Ribble Council,http://statistics.data.gov.uk/doc/local-authority/30UN,Property Services,Rep & Maint Premises,2020,"Lift & Shift Hire a tail lift Luton type van - 3 days Required sack truck, skids, pallet truck & 2 straighten up ADDRESS",06/07/2016,0000425282,"1,344.75",Revenue,COOPER BESPOKE JOINERY LTD,00104456
South Ribble Council,http://statistics.data.gov.uk/doc/local-authority/30UN,Property Services,Rep & Maint Premises,2020,materials line 1,06/07/2016,0000425282,48.00,Revenue,COOPER BESPOKE JOINERY LTD,00104456
South Ribble Council,http://statistics.data.gov.uk/doc/local-authority/30UN,Property Services,Rep & Maint Premises,2020,materials line 2,06/07/2016,0000425282,324.00,Revenue,COOPER BESPOKE JOINERY LTD,00104456
South Ribble Council,http://statistics.data.gov.uk/doc/local-authority/30UN,Property Services,Rep & Maint Premises,2020,Please attend Worden Hall to make repairs as necessary to all doors and windows. Clean up all areas. Make good the parapet ,06/07/2016,0000425284,717.75,Revenue,COOPER BESPOKE JOINERY LTD,00104456
South Ribble Council,http://statistics.data.gov.uk/doc/local-authority/30UN,Property Services,Rep & Maint Premises,2020,materials,06/07/2016,0000425284,84.41,Revenue,COOPER BESPOKE JOINERY LTD,00104456
South Ribble Council,http://statistics.data.gov.uk/doc/local-authority/30UN,Property Services,Other Misc,4421,Please supply labour and transport to pick up the ramp and staging  from ADDRESS REDACTED assemble on 22nd June ,06/07/2016,0000425286,445.50,Revenue,COOPER BESPOKE JOINERY LTD,00104456
South Ribble Council,http://statistics.data.gov.uk/doc/local-authority/30UN,Property Services,Other Misc,4421,materials,06/07/2016,0000425286,22.00,Revenue,COOPER BESPOKE JOINERY LTD,00104456
South Ribble Council,http://statistics.data.gov.uk/doc/local-authority/30UN,Property Services,Rep & Maint Premises,2020,Make repairs to the following pavilions: Holme Pavilion - silicone around the doors. Hern Ave replace concrete block Hutton,06/07/2016,0000425287,264.00,Revenue,COOPER BESPOKE JOINERY LTD,00104456
South Ribble Council,http://statistics.data.gov.uk/doc/local-authority/30UN,Property Services,Rep & Maint Premises,2020,material,06/07/2016,0000425287,84.50,Revenue,COOPER BESPOKE JOINERY LTD,00104456
South Ribble Council,http://statistics.data.gov.uk/doc/local-authority/30UN,Property Services,Rep & Maint Premises,2020,"Please attend tardy gate toilet,  Lostock Hall to replace the door lock on the ladies toilets",15/07/2016,0000425492,33.00,Revenue,COOPER BESPOKE JOINERY LTD,00104456
South Ribble Council,http://statistics.data.gov.uk/doc/local-authority/30UN,Property Services,Rep & Maint Premises,2020,Please supply and fit new support feet to the toilet cubicles in the civic suite ladies,15/07/2016,0000425492,90.75,Revenue,COOPER BESPOKE JOINERY LTD,00104456
South Ribble Council,http://statistics.data.gov.uk/doc/local-authority/30UN,Property Services,Rep & Maint Premises,2020,materials line 1,15/07/2016,0000425492,12.00,Revenue,COOPER BESPOKE JOINERY LTD,00104456
South Ribble Council,http://statistics.data.gov.uk/doc/local-authority/30UN,Property Services,Rep & Maint Premises,2020,materials line 2,15/07/2016,0000425492,290.20,Revenue,COOPER BESPOKE JOINERY LTD,00104456
South Ribble Council,http://statistics.data.gov.uk/doc/local-authority/30UN,Property Services,Rep & Maint Premises,2025,"Please attend Penwortham Holme, provide 3 sets of protective clothing to inspect the site, remove broken glass from the windows",27/07/2016,0000425714,165.00,Revenue,COOPER BESPOKE JOINERY LTD,00104456
South Ribble Council,http://statistics.data.gov.uk/doc/local-authority/30UN,Property Services,Rep & Maint Premises,2025,materials,27/07/2016,0000425714,135.00,Revenue,COOPER BESPOKE JOINERY LTD,00104456
South Ribble Council,http://statistics.data.gov.uk/doc/local-authority/30UN,Housing,Cap Grant- Improve Grants,C570,DFG Works at ADDRESS REDACTED,13/07/2016,0000425445,"7,840.00",Revenue,Cornerstone Building & Maintenance Ltd,131383
South Ribble Council,http://statistics.data.gov.uk/doc/local-authority/30UN,Property Services,Rep & Maint Premises,2020,2016 / 2017 annual contract  for Vent plant maintenance/Cleaning/AHU Maintenance at the civic centre.,20/07/2016,0000425525,495.00,Revenue,DAIKIN APPLIED SERVICE,130324
South Ribble Council,http://statistics.data.gov.uk/doc/local-authority/30UN,Information Services,Peripherals,4247,Maintenance on 3 EqualLogic SANS for 12 months,22/07/2016,0000425738,"2,154.00",Revenue,Daisy Partner Services Ltd,131494
South Ribble Council,http://statistics.data.gov.uk/doc/local-authority/30UN,Healthy Communities,Other Misc,4851,Provision of Cycle Training and Staff Support,27/07/2016,0000425718,540.00,Revenue,NAME REDACTED,132006
South Ribble Council,http://statistics.data.gov.uk/doc/local-authority/30UN,Area 2 - Waste Transport/Eastern & Central Teams,Materials General,4040,1 HOPPER COVER & 4 HINGES VN10 DKL JFC6821,01/07/2016,0000425154,294.94,Revenue,DENNIS EAGLE LTD,00019774
South Ribble Council,http://statistics.data.gov.uk/doc/local-authority/30UN,Shared Financial Services,Other Misc,4851,Miscellaneous,08/07/2016,0000412761,"110,023.00",Revenue,Department for Communities and Local Government,131500
South Ribble Council,http://statistics.data.gov.uk/doc/local-authority/30UN,HR & Communications,Professional Fees,4522,DBS CLEARENCE X10,08/07/2016,0000425389,422.00,Revenue,DISCLOSURE & BARRING SERVICE (CRB),00061984
South Ribble Council,http://statistics.data.gov.uk/doc/local-authority/30UN,Information Services,Peripherals,4248,To 29/09/17 FME for Oracle Fixed Maintenance - as per quote no. 106347,20/07/2016,0000425666,860.00,Revenue,Dotted Eyes Ltd,131106
South Ribble Council,http://statistics.data.gov.uk/doc/local-authority/30UN,Information Services,Peripherals,4248,Standard Support,20/07/2016,0000425666,500.00,Revenue,Dotted Eyes Ltd,131106
South Ribble Council,http://statistics.data.gov.uk/doc/local-authority/30UN,Property Services,Rep & Maint Premises,2020,Leyland Market - Please  carry out the sign work  per your quote 295.00 + VAT,27/07/2016,0000425797,295.00,Revenue,DOUGLAS SIGNS,00103680
South Ribble Council,http://statistics.data.gov.uk/doc/local-authority/30UN,Regeneration,Capital Expenditure,C234,Fence replacement 9 m (plus removal of ( gates),27/07/2016,0000425701,"1,000.00",Revenue,DP STRUCTURES LTD,00120485
South Ribble Council,http://statistics.data.gov.uk/doc/local-authority/30UN,Regeneration,Other Misc,4851,Sculpture/Art As per quote for;1 x Sculpted from Wicker - Seated Soldier with backpack and water bottle on trunk � Somme Com,15/07/2016,0000425443,750.00,Revenue,ECO-ARTS,130217
South Ribble Council,http://statistics.data.gov.uk/doc/local-authority/30UN,Regeneration,Other Misc,4851,Sculpture/Art As per quote for; 1 x Sculpted from Wicker - Seated Soldier with backpack and water bottle on trunk� Somme Com,15/07/2016,0000425443,750.00,Revenue,ECO-ARTS,130217
South Ribble Council,http://statistics.data.gov.uk/doc/local-authority/30UN,Information Services,Peripherals,4260,july,08/07/2016,0000425377,"2,299.71",Revenue,EE Ltd,131653
South Ribble Council,http://statistics.data.gov.uk/doc/local-authority/30UN,Information Services,Peripherals,4260,non vat,08/07/2016,0000425377,24.06,Revenue,EE Ltd,131653
South Ribble Council,http://statistics.data.gov.uk/doc/local-authority/30UN,Democratic Services,Operational Furniture & Equip,4010,Supply:2 x Union Jack 2 x SRBC Logo Flag (Blue Writing) 2 x Civic Flag (3 Acorns) All 2 yards in size as previously ordered,29/07/2016,0000425867,"1,156.00",Revenue,ENSIGN FLAGS CO LTD,130047
South Ribble Council,http://statistics.data.gov.uk/doc/local-authority/30UN,Democratic Services,Operational Furniture & Equip,4010,delivery,29/07/2016,0000425867,10.00,Revenue,ENSIGN FLAGS CO LTD,130047
South Ribble Council,http://statistics.data.gov.uk/doc/local-authority/30UN,Area 2 - Waste Transport/Eastern & Central Teams,Materials General,4040,"2 brackets, 2 bolts, 1 spring, 3 pins, 2x anti role bar brushes, 2 x anti role bar brushes, 1 wheel bearing, 2 link arm rods",22/07/2016,0000425581,375.46,Revenue,EVANSHALSHAW (PRESTON) LTD,00021076
South Ribble Council,http://statistics.data.gov.uk/doc/local-authority/30UN,Development Enterprise & Comm Mgnt,Other Misc,4851,"Leyland Festival project management: May/June 2016 @ 2,500",27/07/2016,0000425715,"2,500.00",Revenue,EVENTS LIVE,131362
South Ribble Council,http://statistics.data.gov.uk/doc/local-authority/30UN,Development Enterprise & Comm Mgnt,Other Misc,4851,Leyland Festival marketing & PR:Festival Website/Social Media Management May & June Organising written information for,27/07/2016,0000425716,"2,000.00",Revenue,EVENTS LIVE,131362
South Ribble Council,http://statistics.data.gov.uk/doc/local-authority/30UN,Healthy Communities,Other Misc,4851,Filming for Dance from the Heart,08/07/2016,0000425310,725.00,Revenue,Everyonemedia Ltd,131539
South Ribble Council,http://statistics.data.gov.uk/doc/local-authority/30UN,Area 2 - Waste Transport/Eastern & Central Teams,External Contractors Charges,4570,Additional Clinical Waste Collections 1.6.16 - 29.6.16,15/07/2016,0000425423,578.44,Revenue,FCC Environment Services (UK) Ltd,131612
South Ribble Council,http://statistics.data.gov.uk/doc/local-authority/30UN,Area 2 - Waste Transport/Eastern & Central Teams,External Contractors Charges,4570,Residual Waste - JUNE 2016,15/07/2016,0000425464,"38,184.45",Revenue,FCC Environment Services (UK) Ltd,131612
South Ribble Council,http://statistics.data.gov.uk/doc/local-authority/30UN,Area 2 - Waste Transport/Eastern & Central Teams,External Contractors Charges,4570,Dry Recyclable (Non Terraced) JUNE 2016,15/07/2016,0000425464,"39,138.10",Revenue,FCC Environment Services (UK) Ltd,131612
South Ribble Council,http://statistics.data.gov.uk/doc/local-authority/30UN,Area 2 - Waste Transport/Eastern & Central Teams,External Contractors Charges,4570,Dry Recyclable (Terraced) JUNE 2016,15/07/2016,0000425464,"1,930.96",Revenue,FCC Environment Services (UK) Ltd,131612
South Ribble Council,http://statistics.data.gov.uk/doc/local-authority/30UN,Area 2 - Waste Transport/Eastern & Central Teams,External Contractors Charges,4570,Organic Waste (Non Terraced) JUNE 2016,15/07/2016,0000425464,"26,660.05",Revenue,FCC Environment Services (UK) Ltd,131612
South Ribble Council,http://statistics.data.gov.uk/doc/local-authority/30UN,Area 2 - Waste Transport/Eastern & Central Teams,External Contractors Charges,4570,Organic Waste (Terraced) JUNE 2016,15/07/2016,0000425464,"5,629.06",Revenue,FCC Environment Services (UK) Ltd,131612
South Ribble Council,http://statistics.data.gov.uk/doc/local-authority/30UN,Area 2 - Waste Transport/Eastern & Central Teams,External Contractors Charges,4570,Schedule 2 Properties JUNE 2016,15/07/2016,0000425464,"1,612.74",Revenue,FCC Environment Services (UK) Ltd,131612
South Ribble Council,http://statistics.data.gov.uk/doc/local-authority/30UN,Area 2 - Waste Transport/Eastern & Central Teams,External Contractors Charges,4570,Commercial Waste JUNE 2016,15/07/2016,0000425464,"6,312.47",Revenue,FCC Environment Services (UK) Ltd,131612
South Ribble Council,http://statistics.data.gov.uk/doc/local-authority/30UN,Area 2 - Waste Transport/Eastern & Central Teams,External Contractors Charges,4570,Bulky Waste Collections JUNE 2016,15/07/2016,0000425464,873.13,Revenue,FCC Environment Services (UK) Ltd,131612
South Ribble Council,http://statistics.data.gov.uk/doc/local-authority/30UN,Area 2 - Waste Transport/Eastern & Central Teams,External Contractors Charges,4570,WEEE Collections JUNE 2016,15/07/2016,0000425464,326.68,Revenue,FCC Environment Services (UK) Ltd,131612
South Ribble Council,http://statistics.data.gov.uk/doc/local-authority/30UN,Area 2 - Waste Transport/Eastern & Central Teams,External Contractors Charges,4570,Clinical Waste Collections JUNE 2016,15/07/2016,0000425464,556.37,Revenue,FCC Environment Services (UK) Ltd,131612
South Ribble Council,http://statistics.data.gov.uk/doc/local-authority/30UN,Area 2 - Waste Transport/Eastern & Central Teams,External Contractors Charges,4570,Replacement Bins JUNE 2016,15/07/2016,0000425464,"5,000.00",Revenue,FCC Environment Services (UK) Ltd,131612
South Ribble Council,http://statistics.data.gov.uk/doc/local-authority/30UN,Area 2 - Waste Transport/Eastern & Central Teams,External Contractors Charges,4570,Additional Properties JUNE 2016,15/07/2016,0000425464,694.19,Revenue,FCC Environment Services (UK) Ltd,131612
South Ribble Council,http://statistics.data.gov.uk/doc/local-authority/30UN,Area 2 - Waste Transport/Eastern & Central Teams,External Contractors Charges,4570,Additional Works per man hour  including transport - JUNE 2016,15/07/2016,0000425464,81.48,Revenue,FCC Environment Services (UK) Ltd,131612
South Ribble Council,http://statistics.data.gov.uk/doc/local-authority/30UN,Area 2 - Waste Transport/Eastern & Central Teams,Balance Sheet,0030,retention,15/07/2016,0000425464,"-2,432.08",Revenue,FCC Environment Services (UK) Ltd,131612
South Ribble Council,http://statistics.data.gov.uk/doc/local-authority/30UN,Area 2 - Waste Transport/Eastern & Central Teams,Balance Sheet,0030,retention,15/07/2016,0000425464,"-3,667.91",Revenue,FCC Environment Services (UK) Ltd,131612
South Ribble Council,http://statistics.data.gov.uk/doc/local-authority/30UN,Area 2 - Waste Transport/Eastern & Central Teams,Materials General,4040,18 BOTTOM BLADES - BIN 1265 - BO,08/07/2016,0000425213,393.98,Revenue,GIBSONS GARDEN MACHINERY LTD,00059051
South Ribble Council,http://statistics.data.gov.uk/doc/local-authority/30UN,Area 2 - Waste Transport/Eastern & Central Teams,Materials General,4040,20 SCRAPER WIRES - BIN 1060 - BO,29/07/2016,0000425798,306.00,Revenue,GIBSONS GARDEN MACHINERY LTD,00059051
South Ribble Council,http://statistics.data.gov.uk/doc/local-authority/30UN,Shared Financial Services,Professional Fees,4512,Fee for the 2015/16 planned audit,06/07/2016,0000424876,"10,980.75",Revenue,Grant Thornton UK LLP,130718
South Ribble Council,http://statistics.data.gov.uk/doc/local-authority/30UN,Property Services,Rep & Maint Fixed Plant,2035,Please supply and install CCTV recording equipment for Leyland market as per your enquiry No 21361,22/07/2016,0000425465,"1,234.40",Revenue,Grantfen Fire & Security Ltd,131572
South Ribble Council,http://statistics.data.gov.uk/doc/local-authority/30UN,Area 2 - Waste Transport/Eastern & Central Teams,Materials General,4040,ASSORTED FILTERS (IMPREST STOCK),20/07/2016,0000425614,380.31,Revenue,H & J SERVICES LTD,00114446
South Ribble Council,http://statistics.data.gov.uk/doc/local-authority/30UN,Area 2 - Waste Transport/Eastern & Central Teams,Materials General,4040,ASSORTED FILTERS - IMPREST STOCK,29/07/2016,0000425842,465.82,Revenue,H & J SERVICES LTD,00114446
South Ribble Council,http://statistics.data.gov.uk/doc/local-authority/30UN,Information Services,Training Expense-Course Fees,1420,1-day Technical Training course for NAME REDACTED on 13th July 2016,22/07/2016,0000425692,325.00,Revenue,HALAROSE LTD,00024358
South Ribble Council,http://statistics.data.gov.uk/doc/local-authority/30UN,Neighbourhood Admin & Support,Vehicle Running Costs,3132,"15,000 LITRES DIESEL @ 87.73 PENCE PER LITRE",15/07/2016,0000425484,"13,425.29",Revenue,Hall Fuels trading name of WFL (UK) Ltd,00116758
South Ribble Council,http://statistics.data.gov.uk/doc/local-authority/30UN,Neighbourhood Admin & Support,Vehicle Running Costs,3134,1500 LITRES GAS OIL @ 43.02 PENCE PER LITRE,20/07/2016,0000425550,671.70,Revenue,Hall Fuels trading name of WFL (UK) Ltd,00116758
South Ribble Council,http://statistics.data.gov.uk/doc/local-authority/30UN,Neighbourhood Admin & Support,Vehicle Running Costs,3132,"17,000 LITRES DIESEL (@ 87.97 PENCE PER LITRE)",27/07/2016,0000425807,"13,635.35",Revenue,Hall Fuels trading name of WFL (UK) Ltd,00116758
South Ribble Council,http://statistics.data.gov.uk/doc/local-authority/30UN,Neighbourhood Admin & Support,Vehicle Running Costs,3134,2500 LITRES GAS OIL (@ 42.26 PENCE PER LITRE),27/07/2016,0000425808,"1,056.50",Revenue,Hall Fuels trading name of WFL (UK) Ltd,00116758
South Ribble Council,http://statistics.data.gov.uk/doc/local-authority/30UN,Environmental Health,Licence Fees,488B,mgmt fee,20/07/2016,0000425543,"1,000.00",Revenue,HIGHER WALTON COMMUNITY CENTRE,00070535
South Ribble Council,http://statistics.data.gov.uk/doc/local-authority/30UN,Area 3 - Parks/Leyland East West,Grounds Maint Cntrctrs Chgs,4657,"598m2 2-4mm Amber Gold and 130m2 1-3mm Buff Bauxite Surface Dressing at the main car park , Worden Park Please call",15/07/2016,0000425514,"12,599.60",Revenue,HMS DECORATIVE SURFACING LTD,131268
South Ribble Council,http://statistics.data.gov.uk/doc/local-authority/30UN,Property Services,Operational Furniture & Equip,4012,Extreme Mat Pebble 150x250,27/07/2016,0000425754,697.00,Revenue,INITIAL WASHROOM SOLUTIONS,00024811
South Ribble Council,http://statistics.data.gov.uk/doc/local-authority/30UN,Property Services,Operational Furniture & Equip,4012,Extreme Mat Pebble 85x300,27/07/2016,0000425754,587.00,Revenue,INITIAL WASHROOM SOLUTIONS,00024811
South Ribble Council,http://statistics.data.gov.uk/doc/local-authority/30UN,Information Services,Peripherals,4247,"6 x Win Server Std 2Proc SL @ 523.43 each, as per quote",01/07/2016,0000425156,"3,140.58",Revenue,INSIGHT UK,00120744
South Ribble Council,http://statistics.data.gov.uk/doc/local-authority/30UN,Development Enterprise & Comm Mgnt,Other Misc,4851,Arena Sound systems for Leyland Festival on Saturday 18th June @ 700,01/07/2016,0000425186,690.00,Revenue,INTRAK,00048240
South Ribble Council,http://statistics.data.gov.uk/doc/local-authority/30UN,Healthy Communities,Sports Dev Expenses,4894,Mini Bus Transport for the Dance from the Road Show Monday 13th � Friday 17th June,13/07/2016,0000425399,675.00,Revenue,NAME REDACTED,130499
South Ribble Council,http://statistics.data.gov.uk/doc/local-authority/30UN,Legal,Legal,4821,"Work undertaken by NAME REDACTED, Principal.  Dec 2015 to Jan 2016 respect of a drivers licence (NAME REDACTED)",27/07/2016,0000425813,"2,121.66",Revenue,James Button & Co Solicitors,132024
South Ribble Council,http://statistics.data.gov.uk/doc/local-authority/30UN,Area 2 - Waste Transport/Eastern & Central Teams,Capital Expenditure,C230,200 WHITE SPACE MARKERS FOR NAME REDACTED - 85 TILES,20/07/2016,0000425619,242.00,Revenue,JEWSON LTD,130263
South Ribble Council,http://statistics.data.gov.uk/doc/local-authority/30UN,Area 2 - Waste Transport/Eastern & Central Teams,Capital Expenditure,C230,DELIVERY TO LEYLAND,20/07/2016,0000425619,25.00,Revenue,JEWSON LTD,130263
South Ribble Council,http://statistics.data.gov.uk/doc/local-authority/30UN,Planning,Advertising,4841,Public notices for planning applications.,01/07/2016,0000425157,577.50,Revenue,JOHNSTON PUBLISHING (NORTH WEST),00011345
South Ribble Council,http://statistics.data.gov.uk/doc/local-authority/30UN,Planning,Advertising,4841,Public notices for planning applications.,08/07/2016,0000425291,813.75,Revenue,JOHNSTON PUBLISHING (NORTH WEST),00011345
South Ribble Council,http://statistics.data.gov.uk/doc/local-authority/30UN,Planning,Advertising,4841,Public notices for planning applications.,13/07/2016,0000425390,708.75,Revenue,JOHNSTON PUBLISHING (NORTH WEST),00011345
South Ribble Council,http://statistics.data.gov.uk/doc/local-authority/30UN,Planning,Advertising,4841,Public notices for planning applications.,13/07/2016,0000425431,577.50,Revenue,JOHNSTON PUBLISHING (NORTH WEST),00011345
South Ribble Council,http://statistics.data.gov.uk/doc/local-authority/30UN,Planning,Advertising,4841,Public notices for planning applications.,20/07/2016,0000425467,603.75,Revenue,JOHNSTON PUBLISHING (NORTH WEST),00011345
South Ribble Council,http://statistics.data.gov.uk/doc/local-authority/30UN,Planning,Advertising,4841,Public notices for planning applications.,27/07/2016,0000425608,551.25,Revenue,JOHNSTON PUBLISHING (NORTH WEST),00011345
South Ribble Council,http://statistics.data.gov.uk/doc/local-authority/30UN,Area 3 - Parks/Leyland East West,Grounds Maint Cntrctrs Chgs,4657,"4 NO. 9152211500 STAINLESS STEEL FIXINGS WITH JOINT AND WASHERS @65.00 EACH. CARRIAGE CHARGE OF 30.",27/07/2016,0000418453,290.00,Revenue,Jupiter Play & leisure Ltd,131956
South Ribble Council,http://statistics.data.gov.uk/doc/local-authority/30UN,Area 3 - Parks/Leyland East West,Grounds Maint Cntrctrs Chgs,4657,HIRE OF 1.5 TON EXCAVATOR C/W TRAILER AND AUGER.  ON HIRE TUESDAY 21.6.16 FOR 3 - 4 DAYS HIRE.,20/07/2016,0000425357,325.00,Revenue,K H HIRE SERVICES,00012933
South Ribble Council,http://statistics.data.gov.uk/doc/local-authority/30UN,Area 2 - Waste Transport/Eastern & Central Teams,Materials General,4040,208 Litres of Total Rubia 7900 FE 7900,20/07/2016,0000425598,284.96,Revenue,LANCASHIRE OILS LTD,131167
South Ribble Council,http://statistics.data.gov.uk/doc/local-authority/30UN,Area 2 - Waste Transport/Eastern & Central Teams,External Contractors Charges,4570,SPEC REPAIR - PO13UUM - JFC6888 - PD,15/07/2016,0000425434,739.78,Revenue,Lancashire Waste Services Limited,131510
South Ribble Council,http://statistics.data.gov.uk/doc/local-authority/30UN,Legal,Other Local Authorities,4530,LAND CHARGES - JANUARY 2016,27/07/2016,0000412792,"1,174.00",Revenue,LANCS COUNTY COUNCIL,00041645
South Ribble Council,http://statistics.data.gov.uk/doc/local-authority/30UN,Legal,Other Local Authorities,4530,LAND CHARGES - FEBRUARY 2016,27/07/2016,0000412792,"1,376.50",Revenue,LANCS COUNTY COUNCIL,00041645
South Ribble Council,http://statistics.data.gov.uk/doc/local-authority/30UN,Development Enterprise & Comm Mgnt,Capital Expenditure,C234,st caths park regen,27/07/2016,0000425678,"7,798.39",Revenue,LANDSCAPE ENGINEERING LIMITED,130416
South Ribble Council,http://statistics.data.gov.uk/doc/local-authority/30UN,Information Services,Publications,4142,ryde issue 12,20/07/2016,0000425569,324.45,Revenue,LEXISNEXIS BUTTERWORTHS,00037138
South Ribble Council,http://statistics.data.gov.uk/doc/local-authority/30UN,Area 2 - Waste Transport/Eastern & Central Teams,External Contractors Charges,4570,SPEC REPAIR - MV12 SWN - JFC7111 - AW,22/07/2016,0000425736,302.50,Revenue,LEYLAND GARAGE SERVICE CENTRE LTD,00064541
South Ribble Council,http://statistics.data.gov.uk/doc/local-authority/30UN,Democratic Services,Other Misc,4421,USE OF VENUE AS A POLLING STATION FOR THE EU REFERENDUM ON THURSDAY 23 JUNE 201 ACCESS TO THE ,01/07/2016,0000424966,250.00,Revenue,LEYLAND MASONIC HALL ASSOC,00060189
South Ribble Council,http://statistics.data.gov.uk/doc/local-authority/30UN,Democratic Services,Other Misc,4421,USE OF VENUE AS A POLLING STATION FOR THE EU REFERENDUM ON THURSDAY 23 JUNE 2016ACCESS WILL BE,06/07/2016,0000425185,272.00,Revenue,LEYLAND METHODIST CHURCH,130071
South Ribble Council,http://statistics.data.gov.uk/doc/local-authority/30UN,Democratic Services,Other Misc,4421,Miscellaneous,13/07/2016,0000425426,263.50,Revenue,LEYLAND METHODIST CHURCH,130071
South Ribble Council,http://statistics.data.gov.uk/doc/local-authority/30UN,Regeneration,Capital Expenditure,C305,Improvement works to Club House,08/07/2016,0000425316,500.00,Revenue,LONGTON VM SPORTS & SOCIAL CLUB,00120676
South Ribble Council,http://statistics.data.gov.uk/doc/local-authority/30UN,Housing,Cap Grant- Improve Grants,C570,DFG WORK AT ADDRESS REDACTED,29/07/2016,0000425739,"5,000.00",Revenue,LTL CONSTRUCTION & MAINTENANCE LTD,131406
South Ribble Council,http://statistics.data.gov.uk/doc/local-authority/30UN,Neighbourhood Admin & Support,Operational Furniture & Equip,4010,SQUIRE 660 PADLOCK PASS KEY 4,06/07/2016,0000425248,236.59,Revenue,M A C BUILDING PRODUCTS LTD,00051059
South Ribble Council,http://statistics.data.gov.uk/doc/local-authority/30UN,Neighbourhood Admin & Support,Operational Furniture & Equip,4010,PADLOCK PASS KEY 4,06/07/2016,0000425248,35.00,Revenue,M A C BUILDING PRODUCTS LTD,00051059
South Ribble Council,http://statistics.data.gov.uk/doc/local-authority/30UN,Housing,Cap Grant- Improve Grants,C570,DFG works for ADDRESS REDACTED,13/07/2016,0000425446,"4,155.00",Revenue,M J PARK,00087434
South Ribble Council,http://statistics.data.gov.uk/doc/local-authority/30UN,Housing,Cap Grant- Improve Grants,C570,DFG WORKS TO BATHROOM AS PER QUOTE AT ADDRESS REDACTED,15/07/2016,0000425545,"3,070.00",Revenue,M J PARK,00087434
South Ribble Council,http://statistics.data.gov.uk/doc/local-authority/30UN,Area 2 - Waste Transport/Eastern & Central Teams,External Contractors Charges,4570,1 spec repair PJ62 UCH JFC7085,15/07/2016,0000425512,273.03,Revenue,M WILSON COMMERCIALS LIMITED,130533
South Ribble Council,http://statistics.data.gov.uk/doc/local-authority/30UN,Area 2 - Waste Transport/Eastern & Central Teams,External Contractors Charges,4570,Spec. repair - PJ62UCL - JFC7039 - pd,22/07/2016,0000425609,481.47,Revenue,M WILSON COMMERCIALS LIMITED,130533
South Ribble Council,http://statistics.data.gov.uk/doc/local-authority/30UN,Area 2 - Waste Transport/Eastern & Central Teams,External Contractors Charges,4570,SPEC REPAIR - JFC7157 - VN10DKL - PD,29/07/2016,0000425823,"1,232.25",Revenue,M WILSON COMMERCIALS LIMITED,130533
South Ribble Council,http://statistics.data.gov.uk/doc/local-authority/30UN,Housing,Cap Grant- Improve Grants,C570,"DFG WORKS TO BATHROOM AT ADDRESS REDACTED , 50% OF TOTAL COST 1598.50",08/07/2016,0000425328,"1,598.00",Revenue,MAHONEY CONTRACTORS LTD,131271
South Ribble Council,http://statistics.data.gov.uk/doc/local-authority/30UN,Neighbourhood Admin & Support,Materials General,4040,77 - 83 ODD  (AS PER SRBC SPECIFICATION),06/07/2016,0000425204,38.00,Revenue,Main Street Signs Ltd,131922
South Ribble Council,http://statistics.data.gov.uk/doc/local-authority/30UN,Neighbourhood Admin & Support,Materials General,4040,ADDRESS REDACTED  (AS PER SRBC SPECIFICATION),06/07/2016,0000425204,48.00,Revenue,Main Street Signs Ltd,131922
South Ribble Council,http://statistics.data.gov.uk/doc/local-authority/30UN,Neighbourhood Admin & Support,Materials General,4040,ADDRESS REDACTED (AS PER SRBC SPECIFICATION),06/07/2016,0000425204,41.00,Revenue,Main Street Signs Ltd,131922
South Ribble Council,http://statistics.data.gov.uk/doc/local-authority/30UN,Neighbourhood Admin & Support,Materials General,4040,ADDRESS REDACTED  (AS PER SRBC SPECIFICATION),06/07/2016,0000425204,44.00,Revenue,Main Street Signs Ltd,131922
South Ribble Council,http://statistics.data.gov.uk/doc/local-authority/30UN,Neighbourhood Admin & Support,Materials General,4040,ADDRESS REDACTED (AS PER SRBC SPECIFICATION),06/07/2016,0000425204,42.00,Revenue,Main Street Signs Ltd,131922
South Ribble Council,http://statistics.data.gov.uk/doc/local-authority/30UN,Neighbourhood Admin & Support,Materials General,4040,ADDRESS REDACTED  (AS PER SRBC SPECIFICATION),06/07/2016,0000425204,76.00,Revenue,Main Street Signs Ltd,131922
South Ribble Council,http://statistics.data.gov.uk/doc/local-authority/30UN,Neighbourhood Admin & Support,Materials General,4040,ADDRESS REDACTED  (AS PER SRBC SPECIFICATION),06/07/2016,0000425204,84.00,Revenue,Main Street Signs Ltd,131922
South Ribble Council,http://statistics.data.gov.uk/doc/local-authority/30UN,Neighbourhood Admin & Support,Materials General,4040,ADDRESS REDACTED  (AS PER SRBC SPECIFICATION),06/07/2016,0000425204,15.00,Revenue,Main Street Signs Ltd,131922
South Ribble Council,http://statistics.data.gov.uk/doc/local-authority/30UN,Neighbourhood Admin & Support,Materials General,4040,ADDRESS REDACTED (AS PER SRBC SPECIFICATION),06/07/2016,0000425204,41.00,Revenue,Main Street Signs Ltd,131922
South Ribble Council,http://statistics.data.gov.uk/doc/local-authority/30UN,Neighbourhood Admin & Support,Materials General,4040,ADDRESS REDACTED  (AS PER SRBC SPECIFICATION),06/07/2016,0000425204,43.00,Revenue,Main Street Signs Ltd,131922
South Ribble Council,http://statistics.data.gov.uk/doc/local-authority/30UN,Neighbourhood Admin & Support,Materials General,4040,ADDRESS REDACTED  (AS PER SRBC SPECIFICATION),06/07/2016,0000425204,20.00,Revenue,Main Street Signs Ltd,131922
South Ribble Council,http://statistics.data.gov.uk/doc/local-authority/30UN,Neighbourhood Admin & Support,Materials General,4040,ADDRESS REDACTED (AS PER SRBC SPECIFICATION),06/07/2016,0000425204,38.00,Revenue,Main Street Signs Ltd,131922
South Ribble Council,http://statistics.data.gov.uk/doc/local-authority/30UN,Neighbourhood Admin & Support,Materials General,4040,ADDRESS REDACTED  (AS PER SRBC SPECIFICATION),06/07/2016,0000425204,40.00,Revenue,Main Street Signs Ltd,131922
South Ribble Council,http://statistics.data.gov.uk/doc/local-authority/30UN,Neighbourhood Admin & Support,Materials General,4040,ADDRESS REDACTED  (AS PER SRBC SPECIFICATION),06/07/2016,0000425204,41.00,Revenue,Main Street Signs Ltd,131922
South Ribble Council,http://statistics.data.gov.uk/doc/local-authority/30UN,Neighbourhood Admin & Support,Materials General,4040,ADDRESS REDACTED (AS PER SRBC SPECIFICATION),06/07/2016,0000425204,39.00,Revenue,Main Street Signs Ltd,131922
South Ribble Council,http://statistics.data.gov.uk/doc/local-authority/30UN,Neighbourhood Admin & Support,Materials General,4040,ADDRESS REDACTED (AS PER SRBC SPECIFICATION),06/07/2016,0000425204,39.00,Revenue,Main Street Signs Ltd,131922
South Ribble Council,http://statistics.data.gov.uk/doc/local-authority/30UN,Neighbourhood Admin & Support,Materials General,4040,ADDRESS REDACTED  (AS PER SRBC SPECIFICATION),06/07/2016,0000425204,40.00,Revenue,Main Street Signs Ltd,131922
South Ribble Council,http://statistics.data.gov.uk/doc/local-authority/30UN,Neighbourhood Admin & Support,Materials General,4040,DELIVERY CHARGE,06/07/2016,0000425204,49.50,Revenue,Main Street Signs Ltd,131922
South Ribble Council,http://statistics.data.gov.uk/doc/local-authority/30UN,Property Services,Rep & Maint Premises,2020,ADDRESS REDACTED - Please supply new polycarbon roof lights - remove existing roof lights and fit new units,20/07/2016,0000425548,438.00,Revenue,MAINCOAT LTD,00099244
South Ribble Council,http://statistics.data.gov.uk/doc/local-authority/30UN,Property Services,Rep & Maint Premises,2020,materials,20/07/2016,0000425548,292.00,Revenue,MAINCOAT LTD,00099244
South Ribble Council,http://statistics.data.gov.uk/doc/local-authority/30UN,Shared Financial Services,Rep & Maint Premises,2020,2016 / 2017 contract for gutter inspection at Moss Side Depot,27/07/2016,0000425554,181.50,Revenue,MAINCOAT LTD,00099244
South Ribble Council,http://statistics.data.gov.uk/doc/local-authority/30UN,Shared Financial Services,Rep & Maint Premises,2020,2016 / 2017 contract for gutter inspection at Bamber Bridge Community Centre,27/07/2016,0000425554,89.00,Revenue,MAINCOAT LTD,00099244
South Ribble Council,http://statistics.data.gov.uk/doc/local-authority/30UN,Shared Financial Services,Rep & Maint Premises,2020,2016 / 2017 contract for gutter inspection at Moss Side Community Centre,27/07/2016,0000425554,89.00,Revenue,MAINCOAT LTD,00099244
South Ribble Council,http://statistics.data.gov.uk/doc/local-authority/30UN,Shared Financial Services,Rep & Maint Premises,2020,2016 / 2017 contract for gutter inspection at Gregson Lane Sports Pavilion,27/07/2016,0000425554,70.50,Revenue,MAINCOAT LTD,00099244
South Ribble Council,http://statistics.data.gov.uk/doc/local-authority/30UN,Shared Financial Services,Rep & Maint Premises,2020,2016 / 2017 contract for gutter inspection at Longton Pavilion,27/07/2016,0000425554,70.50,Revenue,MAINCOAT LTD,00099244
South Ribble Council,http://statistics.data.gov.uk/doc/local-authority/30UN,Shared Financial Services,Rep & Maint Premises,2020,2016 / 2017 contract for gutter inspection at Hutton Pavilion,27/07/2016,0000425554,70.50,Revenue,MAINCOAT LTD,00099244
South Ribble Council,http://statistics.data.gov.uk/doc/local-authority/30UN,Shared Financial Services,Rep & Maint Premises,2020,2016 / 2017 contract for gutter inspection at Much Hoole pavilion,27/07/2016,0000425554,70.50,Revenue,MAINCOAT LTD,00099244
South Ribble Council,http://statistics.data.gov.uk/doc/local-authority/30UN,Shared Financial Services,Rep & Maint Premises,2020,2016 / 2017 contract for gutter inspection at Moss Side Pavilion,27/07/2016,0000425554,71.50,Revenue,MAINCOAT LTD,00099244
South Ribble Council,http://statistics.data.gov.uk/doc/local-authority/30UN,Shared Financial Services,Rep & Maint Premises,2020,2016 / 2017 contract for gutter inspection at Penwortham Holme,27/07/2016,0000425554,70.50,Revenue,MAINCOAT LTD,00099244
South Ribble Council,http://statistics.data.gov.uk/doc/local-authority/30UN,Shared Financial Services,Rep & Maint Premises,2020,2016 / 2017 contract for hard standing inspection at Moss Side Depot,27/07/2016,0000425554,13.50,Revenue,MAINCOAT LTD,00099244
South Ribble Council,http://statistics.data.gov.uk/doc/local-authority/30UN,Shared Financial Services,Rep & Maint Premises,2020,2016 / 2017 contract for hard standing inspection at Moss Side Community Centre,27/07/2016,0000425554,13.50,Revenue,MAINCOAT LTD,00099244
South Ribble Council,http://statistics.data.gov.uk/doc/local-authority/30UN,Shared Financial Services,Rep & Maint Premises,2020,2016 / 2017 contract for hard standing inspection at Bamber Bridge Leisure Centre,27/07/2016,0000425554,13.50,Revenue,MAINCOAT LTD,00099244
South Ribble Council,http://statistics.data.gov.uk/doc/local-authority/30UN,Shared Financial Services,Rep & Maint Premises,2020,"2016 / 2017 contract for hard standing inspection at the Tennis Centre, Bamber Bridge",27/07/2016,0000425554,13.50,Revenue,MAINCOAT LTD,00099244
South Ribble Council,http://statistics.data.gov.uk/doc/local-authority/30UN,Shared Financial Services,Rep & Maint Premises,2020,2016 / 2017 contract for hard standing inspection at Gregson Lane pavilion,27/07/2016,0000425554,13.50,Revenue,MAINCOAT LTD,00099244
South Ribble Council,http://statistics.data.gov.uk/doc/local-authority/30UN,Shared Financial Services,Rep & Maint Premises,2020,2016 / 2017 contract for hard standing inspection at Longton pavilion,27/07/2016,0000425554,13.50,Revenue,MAINCOAT LTD,00099244
South Ribble Council,http://statistics.data.gov.uk/doc/local-authority/30UN,Shared Financial Services,Rep & Maint Premises,2020,2016 / 2017 contract for hard standing inspection at Hutton Pavilion,27/07/2016,0000425554,13.50,Revenue,MAINCOAT LTD,00099244
South Ribble Council,http://statistics.data.gov.uk/doc/local-authority/30UN,Shared Financial Services,Rep & Maint Premises,2020,2016 / 2017 contract for hard standing inspection at Much Hoole Pavilion,27/07/2016,0000425554,13.50,Revenue,MAINCOAT LTD,00099244
South Ribble Council,http://statistics.data.gov.uk/doc/local-authority/30UN,Shared Financial Services,Rep & Maint Premises,2020,2016 / 2017 contract for hard standing inspection at Moss Side Pavilion,27/07/2016,0000425554,13.50,Revenue,MAINCOAT LTD,00099244
South Ribble Council,http://statistics.data.gov.uk/doc/local-authority/30UN,Shared Financial Services,Rep & Maint Premises,2020,2016 / 2017 contract for hard standing inspection at Penwortham Holme,27/07/2016,0000425554,13.50,Revenue,MAINCOAT LTD,00099244
South Ribble Council,http://statistics.data.gov.uk/doc/local-authority/30UN,Area 3 - Parks/Leyland East West,Grounds Maint Cntrctrs Chgs,4657,FOT- 111 Five- a-Side Goals,27/07/2016,0000425756,485.00,Revenue,MARK HARROD LIMITED,00119632
South Ribble Council,http://statistics.data.gov.uk/doc/local-authority/30UN,Area 3 - Parks/Leyland East West,Grounds Maint Cntrctrs Chgs,4657,Carriage,27/07/2016,0000425756,50.00,Revenue,MARK HARROD LIMITED,00119632
South Ribble Council,http://statistics.data.gov.uk/doc/local-authority/30UN,Healthy Communities,Provisions,4311,Bar supplies for the mayoral banquet 2016,22/07/2016,0000425438,354.15,Revenue,MATTHEW CLARK WHOLESALE LTD,00047720
South Ribble Council,http://statistics.data.gov.uk/doc/local-authority/30UN,Property Services,Provisions,4311,Bar stock for Civic Centre as discussed with ADDRESS REDACTED,13/07/2016,0000425444,610.54,Revenue,MATTHEW CLARK WHOLESALE LTD,00047720
South Ribble Council,http://statistics.data.gov.uk/doc/local-authority/30UN,HR & Communications,Training Expense-Course Fees,1402,SMARTPLAN FOR COURSES RAN ON DIFFERENT DATE THROUGHOUT THE YEAR 2016/2017 (DISCOUNTED RATES),08/07/2016,0000425321,500.00,Revenue,MBL SEMINARS,130900
South Ribble Council,http://statistics.data.gov.uk/doc/local-authority/30UN,Regeneration,Other Misc,4851,Hire of 250 safety barriers (approx. 500 metres) for Leyland Festival on Saturday 18th June,06/07/2016,0000425229,800.00,Revenue,MDS Scaffolding Limited,131533
South Ribble Council,http://statistics.data.gov.uk/doc/local-authority/30UN,Area 1 - Penwortham Western Parishes,Professional Fees,4521,PROVISION OF STRAY DOG SERVICE - TO COVER JUNE 2016,20/07/2016,0000425368,261.74,Revenue,MORNINGSIDE KENNELS,00067755
South Ribble Council,http://statistics.data.gov.uk/doc/local-authority/30UN,Healthy Communities,External Contractors Charges,4575,13th Safeguarding Children,22/07/2016,0000425568,300.00,Revenue,MOSS HOUSE FARM,00121808
South Ribble Council,http://statistics.data.gov.uk/doc/local-authority/30UN,Healthy Communities,External Contractors Charges,4575,20th Full council,27/07/2016,0000425703,570.00,Revenue,MOSS HOUSE FARM,00121808
South Ribble Council,http://statistics.data.gov.uk/doc/local-authority/30UN,Environmental Health,Licence Fees,488B,mgmt fees,20/07/2016,0000425541,"1,375.00",Revenue,MOSS SIDE COMMUNITY FORUM,00098724
South Ribble Council,http://statistics.data.gov.uk/doc/local-authority/30UN,Legal,Legal,4821,refund,20/07/2016,0000425324,"14,819.76",Revenue,NAME REDACTED,131994
South Ribble Council,http://statistics.data.gov.uk/doc/local-authority/30UN,Planning,Legal,4821,Advising in conference - Prep 2hrs; con 3 hrs ADDRESS REDACTED,22/07/2016,0000425684,"1,125.00",Revenue,MR IAN PONTER,131194
South Ribble Council,http://statistics.data.gov.uk/doc/local-authority/30UN,Regeneration,Capital Expenditure,C234,7020-8024 1 Dell OptiPlex 7020 - Core i5 4590 3.3 GHz - 8 GB - 128 GB 490-BCEO 1 AMD Radeon R5 240 graphics card -,01/07/2016,0000424690,767.50,Revenue,MYPREMIER LTD,130091
South Ribble Council,http://statistics.data.gov.uk/doc/local-authority/30UN,HR & Communications,Training Expense-Course Fees,1405,ORGANISATION MEMBERSHIP FEE 2016/2017,01/07/2016,0000425222,"4,195.05",Revenue,N WEST LOCAL AUTH EMPLOYERS ORGANISATION,00029829
South Ribble Council,http://statistics.data.gov.uk/doc/local-authority/30UN,Development Enterprise & Comm Mgnt,Other Misc,4851,Temporary Structures for Leyland Festival 2016:3 Frame Marquee 9 x 12 (108 Sq Metres) 40 Trestle Table (6` x 2`3``) per each ,01/07/2016,0000425184,"2,397.50",Revenue,NATIONWIDE MARQUEE HIRE LTD,130006
South Ribble Council,http://statistics.data.gov.uk/doc/local-authority/30UN,Property Services,Client Internal Charges,4590,"Weekly waste removal at Leyland Market, Leyland - for 2016/2017 - 10 yard FEL - 74.49 per lift on a weekly schedule ",20/07/2016,0000425534,317.96,Revenue,NEALES WASTE MANAGEMENT,130129
South Ribble Council,http://statistics.data.gov.uk/doc/local-authority/30UN,Homelessness,Contractors Charges 5,5313,"Void Loss recharges, temporary accommodation ADDRESS REDACTED 2 weeks @ 91.17  22/2/16-6/3/16 ADDRESS ",06/07/2016,0000425139,638.94,Revenue,NEW PROGRESS HOUSING ASSOC ref:DNSOU001,00030135
,,Homelessness,Contractors Charges 5,5313,"Void Loss Recharges - temporary accommodationADDRESS REDACTED, 5 weeks @ 88 .45 11/1/16-14/2/16 ADDRESS",06/07/2016,0000425140,539.96,Revenue,NEW PROGRESS HOUSING ASSOC ref:DNSOU001,00030135
,,Homelessness,Contractors Charges 5,5313,"Void Loss Recharges - temporary accommodation ADDRESS REDACTED, 3 weeks @ 86.88 11/1/16-31/1/16 ADDRESS ",06/07/2016,0000425141,781.92,Revenue,NEW PROGRESS HOUSING ASSOC ref:DNSOU001,00030135
,,Homelessness,Contractors Charges 5,5313,"Void Loss Recharges - temporary accommodation ADDRESS REDACTED, 2 weeks @ 98.74 21/3/16-3/4/16 ADDRESS REDACTED, 8 weeks @ 89.65 25/1/16-20/3/16",06/07/2016,0000425142,"2,914.76",Revenue,NEW PROGRESS HOUSING ASSOC ref:DNSOU001,00030135
,,Homelessness,Contributions,4730,rent in advance agreed via the LIS for NAME REDACTED for tenancy at ADDRESS REDACTED wef 1.7.2016.RIA required  1 ,15/07/2016,0000425507,133.35,Revenue,NEW PROGRESS HOUSING ASSOC ref:DNSOU001,00030135
,,Homelessness,Contributions,4730,agreed rent in advance NAME REDACTED re tenancy ADDRESS REDACTED 1 week and 4 days -  158.95,15/07/2016,0000425507,158.95,Revenue,NEW PROGRESS HOUSING ASSOC ref:DNSOU001,00030135
,,Area 1 - Penwortham Western Parishes,Professional Fees,4514,DEPLOYMENT OF OFFICERS JUNE 2016,15/07/2016,0000425424,814.72,Revenue,NSL LTD,00116868
,,Area 1 - Penwortham Western Parishes,Other Misc,4855,CASH COLLECTION & RING GO TRANSACTIONS JUNE 2016,15/07/2016,0000425424,275.43,Revenue,NSL LTD,00116868
,,HR & Communications,Consultancy Fees,4541,MAY/JUNE 2016 REVIEW AND REDRAFT OF SAFEGAURDING CHILDREN POLICY AND PROCEDURES,06/07/2016,0000425274,"1,500.00",Revenue,P THRELFALL SAFEGUARDING LTD,130382
,,Healthy Communities,Sports Dev Expenses,4890,"Supplier of Event items for the South Ribble Sports Awards ( compare, stage, trophies, printing )",06/07/2016,0000425339,"1,400.00",Revenue,Pennine Events,131103
,,Healthy Communities,Sports Dev Expenses,4890,Final payment for Event Management fee  1500.00,13/07/2016,0000425343,"1,500.00",Revenue,Pennine Events,131103
,,Healthy Communities,Sports Dev Expenses,4890,Final  payment of the sponsorship services for south ribble sports awards   250.00,13/07/2016,0000425344,250.00,Revenue,Pennine Events,131103
,,Area 2 - Waste Transport/Eastern & Central Teams,External Contractors Charges,4570,SERVICE OF FIRE EXTINGUISHERS (VEHICLES),13/07/2016,0000425295,371.05,Revenue,PENNINE FIRE & SAFETY LIMITED,00117281
,,Democratic Services,Other Misc,4421,Miscellaneous,27/07/2016,0000425187,255.00,Revenue,PENWORTHAM ST MARY`S PCC,00067179
,,Information Services,Peripherals,4247,15 x BT Converse 2200 Corded Phone Black - ref: BT30437 @ 39.00 each,20/07/2016,0000425536,507.00,Revenue,PHILLIPS BUSINESS SOLUTIONS,00032214
,,Property Services,Operational Furniture & Equip,4012,"2016 / 2017 contract for the provision of sanitary services at Moss Side Depot, Bison Place, Leyland",08/07/2016,0000425217,405.60,Revenue,PHS GROUP PLC,00031309
,,Property Services,Operational Furniture & Equip,4012,2016 / 2017 contract for the provision of sanitary services at the Civic Centre,01/07/2016,0000425218,941.03,Revenue,PHS GROUP PLC,00031309
,,Regeneration,Other Misc,4851,"Quotation 2015-153 dated 27/4/2016 Supply of T6 and T7 toilets for Opening of St Catherine�s Park 520",01/07/2016,0000425149,520.00,Revenue,Portable Toilet Company,131949
,,Homelessness,Peripherals,4272,Supply and fit new door & refit side gate. ADDRESS REDACTED,22/07/2016,0000425600,480.00,Revenue,PRESTON CARE & REPAIR,130877
,,Homelessness,Contractors Charges 5,5311,FAO NAME REDACTED Shared costs bunk beds and bedding for the Old Steam Mill,08/07/2016,0000425166,424.88,Revenue,Preston City Council,131913
,,Regeneration,Other Misc,4851,Booking for 05.02.2016 - Longton Market ooking for 04.03.2016 - Longton Market Booking for 01.04.2016 - Longton Market,08/07/2016,0000425345,255.00,Revenue,Preston Community Transport,131863
,,Area 2 - Waste Transport/Eastern & Central Teams,External Contractors Charges,4570,TR163,08/07/2016,0000425252,436.30,Revenue,PRESTON TYRE SPECIALISTS,00109516
,,Area 2 - Waste Transport/Eastern & Central Teams,Materials General,4040,TR164,27/07/2016,0000425771,721.35,Revenue,PRESTON TYRE SPECIALISTS,00109516
,,Democratic Services,Other Misc,4423,"A5 EU Referendum Poll Cards - Qty.82,583 1 x  Proof amendment requested 1 x Live proof amends polling station message",27/07/2016,0000425132,"3,970.90",Revenue,PRINT IMAGE NETWORK LTD,00089199
,,Democratic Services,Other Misc,4421,South Ribble EU REF Corresponding Number Lists,01/07/2016,0000425148,958.36,Revenue,PRINT IMAGE NETWORK LTD,00089199
,,Democratic Services,Other Misc,4425,EU Referendum Ballot Books,01/07/2016,0000425152,"4,222.95",Revenue,PRINT IMAGE NETWORK LTD,00089199
,,Democratic Services,Other Misc,4422,EU Referendum Voter-Peel Connect PV Packs - Qty 19270,06/07/2016,0000425309,"13,375.87",Revenue,PRINT IMAGE NETWORK LTD,00089199
,,Democratic Services,Other Misc,4422,Additional data files for 1st and 2nd issues,06/07/2016,0000425309,95.00,Revenue,PRINT IMAGE NETWORK LTD,00089199
,,Democratic Services,Other Misc,4422,"Reprint reprints of Out, Envelope A & Envelope B - Qty 15000",06/07/2016,0000425309,"1,246.75",Revenue,PRINT IMAGE NETWORK LTD,00089199
,,Democratic Services,Printing,4127,"12,000 South Ribble HEF outgoing envelopes",13/07/2016,0000425364,435.40,Revenue,PRINT IMAGE NETWORK LTD,00089199
,,Democratic Services,Other Misc,4425,South Ribble EU Referendum Large Format Ballot Papers,13/07/2016,0000425385,257.00,Revenue,PRINT IMAGE NETWORK LTD,00089199
,,Information Services,Postage,4292,Franking Machine Top up funds,01/07/2016,0000425196,"9,000.00",Revenue,Purchase Power,00093923
,,Information Services,Postage,4292,Reset Fee,01/07/2016,0000425196,90.00,Revenue,Purchase Power,00093923
,,Area 3 - Parks/Leyland East West,Grounds Maint Cntrctrs Chgs,4657,DE-WATERING SYSTEM - ADDRESSES REDACTED AND REPAIR TO MANHOLE BASE,20/07/2016,0000425428,760.00,Revenue,Reid Construction & Civil Engineering Ltd,131544
,,Area 3 - Parks/Leyland East West,Grounds Maint Cntrctrs Chgs,4657,materials,20/07/2016,0000425428,728.06,Revenue,Reid Construction & Civil Engineering Ltd,131544
,,Environmental Health,Operational Furniture & Equip,4010,Shower works at ADDRESS REDACTED as per NAME REDACTED,20/07/2016,0000425524,240.00,Revenue,Reid Construction & Civil Engineering Ltd,131544
,,Environmental Health,Operational Furniture & Equip,4010,MATERIALS,20/07/2016,0000425524,900.00,Revenue,Reid Construction & Civil Engineering Ltd,131544
,,Area 2 - Waste Transport/Eastern & Central Teams,Materials General,4040,"5 LAMPS - BIN 436, 2 LENSES BIN 336, 3 LAMPS - BIN 433 - GA",29/07/2016,0000425857,284.48,Revenue,RIBBLESDALE AUTO ELECTRICS 1992 LTD,00033129
,,Regeneration,Other Misc,4851,Leyland fest parade.,08/07/2016,0000425360,"4,250.00",Revenue,Road Safety Services LTD,131989
,,Democratic Services,Postage,4291,Postage,01/07/2016,0000424968,255.35,Revenue,ROYAL MAIL GROUP PLC,00033543
,,Democratic Services,Postage,4291,Postage,01/07/2016,0000425202,"1,069.76",Revenue,ROYAL MAIL GROUP PLC,00033543
,,Democratic Services,Postage,4291,Postage,27/07/2016,0000425679,"2,309.96",Revenue,ROYAL MAIL GROUP PLC,00033543
,,Development Enterprise & Comm Mgnt,Other Misc,4851,"Health Check Event 1 - 500 Health Check Event 2 - 500 Health Check Event 3 - 500 Health Check Event 4 - 500",15/07/2016,0000425505,"1,000.00",Revenue,S O Health,131993
,,Property Services,Energy Costs,2304,Energy costs,22/07/2016,0000425620,"1,252.53",Revenue,SCOTTISH HYDRO ELECTRIC,130051
,,Property Services,Energy Costs,2307,ccl,22/07/2016,0000425620,77.17,Revenue,SCOTTISH HYDRO ELECTRIC,130051
,,Property Services,Energy Costs,2304,7/7/16to 7/7/16,22/07/2016,0000425621,471.75,Revenue,SCOTTISH HYDRO ELECTRIC,130051
,,Property Services,Energy Costs,2303,2/4/16 to 1/7/16,22/07/2016,0000425648,408.87,Revenue,SCOTTISH HYDRO ELECTRIC,130051
,,Property Services,Energy Costs,2307,ccl,22/07/2016,0000425648,19.34,Revenue,SCOTTISH HYDRO ELECTRIC,130051
,,Property Services,Energy Costs,2303,1/6/16 to 30/6/16,22/07/2016,0000425655,977.03,Revenue,SCOTTISH HYDRO ELECTRIC,130051
,,Property Services,Energy Costs,2307,ccl,22/07/2016,0000425655,50.55,Revenue,SCOTTISH HYDRO ELECTRIC,130051
,,Property Services,Energy Costs,2303,1/6/16 to 30/6/16,22/07/2016,0000425658,"2,775.80",Revenue,SCOTTISH HYDRO ELECTRIC,130051
,,Property Services,Energy Costs,2307,ccl,22/07/2016,0000425658,144.92,Revenue,SCOTTISH HYDRO ELECTRIC,130051
,,Property Services,Energy Costs,2303,1/6/16 to 30/6/16,22/07/2016,0000425664,"1,660.49",Revenue,SCOTTISH HYDRO ELECTRIC,130051
,,Property Services,Energy Costs,2307,ccl,22/07/2016,0000425664,89.70,Revenue,SCOTTISH HYDRO ELECTRIC,130051
,,Regeneration,Consultancy Fees,4536,R&M Leisure Service Fee 2016/2017,22/07/2016,0000424903,"13,141.90",Revenue,SERCO LEISURE (OP) LTD,00094906
,,Homelessness,Contributions,4730,Shelter Legal - 6-20 user licences 480 including VAT,22/07/2016,0000425493,400.00,Revenue,SHELTER PUBLICATIONS,00034568
,,Information Services,Professional Fees,4520,Shredding of Confidential Waste 2016/17,27/07/2016,0000425707,270.82,Revenue,SHRED-IT LTD,00109134
,,Neighbourhood Admin & Support,Clothing- Uniforms & Laundry,4410,BOOTS � APACHE F300 - SIZE 9 - UA10584,20/07/2016,0000425642,42.40,Revenue,SMART IMAGE WORKWEAR,00031503
,,Neighbourhood Admin & Support,Clothing- Uniforms & Laundry,4410,BOOTS � APACHE F300 -SIZE 10 - UA10584,20/07/2016,0000425642,84.80,Revenue,SMART IMAGE WORKWEAR,00031503
,,Neighbourhood Admin & Support,Clothing- Uniforms & Laundry,4410,BOOTS � APACHE F300 - SIZE 14 -,20/07/2016,0000425642,37.40,Revenue,SMART IMAGE WORKWEAR,00031503
,,Neighbourhood Admin & Support,Clothing- Uniforms & Laundry,4410,SWEATSHIRT NAVY - extra large - CSR36,20/07/2016,0000425642,26.00,Revenue,SMART IMAGE WORKWEAR,00031503
,,Neighbourhood Admin & Support,Clothing- Uniforms & Laundry,4410,FLEECE NAVY - extra large - CSR37,20/07/2016,0000425642,22.30,Revenue,SMART IMAGE WORKWEAR,00031503
,,Neighbourhood Admin & Support,Clothing- Uniforms & Laundry,4410,HI VIZ POLO (LONG SLEEVED) - large - CSR64,20/07/2016,0000425642,39.80,Revenue,SMART IMAGE WORKWEAR,00031503
,,Homelessness,Peripherals,4272,Defender window alert alarms 5 boxes,08/07/2016,0000424905,487.50,Revenue,SOLON SECURITY LTD,00113845
,,Homelessness,Peripherals,4272,del,08/07/2016,0000424905,10.00,Revenue,SOLON SECURITY LTD,00113845
,,Area 2 - Waste Transport/Eastern & Central Teams,Materials General,4040,"9 BOTTOM BLADES - BIN 1265A, 1 BAG NUTS & BOLTS (50) BIN 1093,  50 SCREWS - BIN 1114 - BO",15/07/2016,0000425544,270.13,Revenue,SPALDINGS,00070849
,,Area 2 - Waste Transport/Eastern & Central Teams,Operational Furniture & Equip,4010,LITTER PICKER  - HA340,22/07/2016,0000425688,374.00,Revenue,SPALDINGS,00070849
,,Area 2 - Waste Transport/Eastern & Central Teams,Materials General,4040,"24 GRASS FLAILS, 24 HEDGE FLAILS, 48 BUSHES, 48 BOLTS, 48 NUTS - TMR02A3 - JFC7112 - BO",29/07/2016,0000425767,552.24,Revenue,SPALDINGS,00070849
,,Regeneration,Other Misc,4851,"5000 leaflets on A4 paper, double sided, colour print on 130gsm silk art (or similar) folded to A5 and boxed.To be delivered to ",01/07/2016,0000425231,295.00,Revenue,SPRINTPRINT (PRESTON),131207
,,Democratic Services,Other Misc,4421,polling station 5th may 2016,20/07/2016,0000425262,150.00,Revenue,ST AIDANS PCC,00076115
,,Democratic Services,Other Misc,4421,USE OF VENUE AS A POLLING STATION FOR THE EU REFERENDUM ON THURSDAY 23 JUNE 201 ACCESS WILL BE  ,20/07/2016,0000425262,150.00,Revenue,ST AIDANS PCC,00076115
,,Democratic Services,Other Misc,4421,USE OF VENUE AS A POLLING STATION FOR THE EU REFERENDUM ON THURSDAY 23 JUNE 2016 ACCESS WILL BE,29/07/2016,0000425837,320.00,Revenue,ST AMBROSE CHURCH HALL,00081540
,,Regeneration,Salaries - Basic,1101,"Catering for St Catherine`s Park Opening Food Vouchers 16 x 4.50  = 72.00 Cream Tea Option 1 9.00 x 165 = 1485.00",01/07/2016,0000425209,"1,557.00",Revenue,ST CATHERINES HOSPICE (LANCASHIRE) LTD,130082
,,Development Enterprise & Comm Mgnt,Other Misc,4851,First Aid requirement First Aid provision for Leyland Festival on Saturday 18th June 2016 6 x First Aiders 2 x Emergency ,27/07/2016,0000425491,715.20,Revenue,ST JOHNS AMBULANCE,00116253
,,Area 2 - Waste Transport/Eastern & Central Teams,Waste Disposal Charges,5110,low sided skip for bypass sweepings Please deliver on Wednesday 11th May E&R on Thursday 12th May (pm) E&R ,06/07/2016,0000424761,300.00,Revenue,SUEZ  RECYCLING AND REC UK LTD 80005291,00038920
,,Area 2 - Waste Transport/Eastern & Central Teams,Materials General,4040,REPAIR KIT - VO65 KPZ - JFC6906,15/07/2016,0000424833,891.68,Revenue,TERBERG MATEC UK LTD,00058625
,,Area 2 - Waste Transport/Eastern & Central Teams,Materials General,4040,1 CONTROL UNIT - VO65 KPZ - JFC6906 - GA,08/07/2016,0000425147,"1,686.92",Revenue,TERBERG MATEC UK LTD,00058625
,,Area 2 - Waste Transport/Eastern & Central Teams,External Contractors Charges,4570,SPEC REPAIR - JFC7024 - PJ62 UCL - AW,15/07/2016,0000425453,250.25,Revenue,TERBERG MATEC UK LTD,00058625
,,Area 2 - Waste Transport/Eastern & Central Teams,Materials General,4040,2 switches - VN0 DKL - JFC7072 - GA,15/07/2016,0000425537,963.49,Revenue,TERBERG MATEC UK LTD,00058625
,,Area 2 - Waste Transport/Eastern & Central Teams,Materials General,4040,3 SWITCHES - BIN 376 - GA,29/07/2016,0000425706,"1,191.49",Revenue,TERBERG MATEC UK LTD,00058625
,,Democratic Services,Other Misc,4421,5th may,13/07/2016,0000425271,252.49,Revenue,THE HUNTERS,131487
,,Legal,Publications,4142,aldridge rel R47,13/07/2016,0000425244,408.00,Revenue,THOMSON REUTERS,00034979
,,Healthy Communities,Provisions,4310,Stock for tea room,27/07/2016,0000425705,243.80,Revenue,TREVORS FOOD SERVICE,130829
,,Healthy Communities,Provisions,4310,Provisions,27/07/2016,0000425705,27.92,Revenue,TREVORS FOOD SERVICE,130829
,,Area 1 - Penwortham Western Parishes,Operational Furniture & Equip,4010,Standpipe Hire 1.4.16 - 30.6.16 (09A019401) - 22mm,27/07/2016,0000425588,128.76,Revenue,UNITED UTILITIES,00116800
,,Area 1 - Penwortham Western Parishes,Operational Furniture & Equip,4010,Standpipe Hire 1.4.16 - 30.6.16 (08A110488) - 22mm,27/07/2016,0000425588,128.76,Revenue,UNITED UTILITIES,00116800
,,Property Services,Rep & Maint Premises,2020,Annual Contract for Maintenance 2016 - 2017  Contract Number 05155 Civic Centre,20/07/2016,0000425563,"2,367.20",Revenue,UNIVERSAL COOLING LTD,130914
,,Property Services,Rep & Maint Premises,2020,Annual Contract  for maintenance 2016 - 2017 contract number 05165 Moss Side Depot,20/07/2016,0000425563,242.40,Revenue,UNIVERSAL COOLING LTD,130914
,,Healthy Communities,Operational Furniture & Equip,4012,Stock for hired coffee machines,06/07/2016,0000425232,682.40,Revenue,VENDING ENTERPRISES,00101501
,,Property Services,Operational Furniture & Equip,4012,Annual Contract for Vending Equipment and Environmental charges  for 2016/2017,08/07/2016,0000425300,322.09,Revenue,VENDING ENTERPRISES,00101501
,,Information Services,Peripherals,4269,"Annual purchase order for ISDN lines, line rentals & call charges for period 01/04/16 - 31/03/17",06/07/2016,0000425253,"1,274.60",Revenue,VODAFONE RE:CABLE & WIRELESS UK,130810
,,Information Services,Peripherals,4247,"Annual purchase order for link, internet & router for period 01/04/16 - 31/03/17",08/07/2016,0000425380,"1,312.66",Revenue,VODAFONE RE:CABLE & WIRELESS UK,130810
,,Information Services,Processing-Internal,4212,Annual purchase order for GSi Convergence Framework for period 01/04/16 - 31/03/17,08/07/2016,0000425381,"2,576.63",Revenue,VODAFONE RE:CABLE & WIRELESS UK,130810
,,Information Services,Peripherals,4269,"Annual purchase order for ISDN lines, line rentals & call charges for period 01/04/16 - 31/03/17",29/07/2016,0000425847,"1,292.84",Revenue,VODAFONE RE:CABLE & WIRELESS UK,130810
,,Regeneration,Other Misc,4851,Please supply 3 new desks,15/07/2016,0000413160,447.00,Revenue,WAGSTAFF GROUP,00072847
,,Neighbourhood Admin & Support,External Contractors Charges,4570,GEARBOX REPAIR - 4570-PFO8 PGY - 731,20/07/2016,0000425356,"1,853.81",Revenue,WALTON SUMMIT TRUCK CENTRE LTD,00038580
,,HR & Communications,Other Misc,4851,WORK CARRIED OUT ON INVESTIGATION,08/07/2016,0000425401,423.00,Revenue,WEIGHTMANS LLP,00120867
,,Legal,Balance Sheet,0030,Test Track Development Costs associated with the Test Track Development (More than one invoice will be received on this ,20/07/2016,0000425482,995.00,Revenue,WEIGHTMANS LLP,00120867
,,Property Services,Balance Sheet,0400,Please supply polling station at 7 am at ADDRESS REDACTED -  22 June 2016 - on site in operation 23 June 2016. Removal ,08/07/2016,0000425361,720.00,Revenue,Wernick Hire Ltd,131449
,,Revenues Plus,Postage,4291,Benefits mail services April 2016,06/07/2016,0000425302,277.73,Revenue,WHISTL  UK LTD,131310
,,Revenues Plus,Postage,4291,Revenues mail services June 2016,06/07/2016,0000425305,354.92,Revenue,WHISTL  UK LTD,131310
,,Revenues Plus,Postage,4291,Benefits mail services April 2016,06/07/2016,0000425318,"1,581.92",Revenue,WHISTL  UK LTD,131310
,,Revenues Plus,Postage,4291,Revenues mail services June 2016,06/07/2016,0000425319,518.66,Revenue,WHISTL  UK LTD,131310
,,Revenues Plus,Postage,4291,Revenues mail services June 2016,13/07/2016,0000425436,700.40,Revenue,WHISTL  UK LTD,131310
,,Revenues Plus,Postage,4291,Revenues mail services July 2016,22/07/2016,0000425697,465.86,Revenue,WHISTL  UK LTD,131310
,,Revenues Plus,Postage,4291,Revenues mail services July 2016,29/07/2016,0000425854,469.38,Revenue,WHISTL  UK LTD,131310
,,HR & Communications,Consultancy Fees,4541,WORK CARRIED OUT ON THE LICENSING STAFF DISCIPLINARY,06/07/2016,0000424729,"10,502.80",Revenue,WILKIN CHAPMAN LLP,131825
,,Area 3 - Parks/Leyland East West,Grounds Maint Cntrctrs Chgs,4657,Worden Park - Railway track/speed  hump removal and repairs as per quotation ref 15901.,13/07/2016,0000425451,"5,275.00",Revenue,WILLIAM PYE LTD,00031590
,,Area 3 - Parks/Leyland East West,Grounds Maint Cntrctrs Chgs,4657,To include construction of wooden edging boards and reinstatements.,13/07/2016,0000425451,240.00,Revenue,WILLIAM PYE LTD,00031590
,,Area 3 - Parks/Leyland East West,Grounds Maint Cntrctrs Chgs,4657,DOB LANE WALMER BRIDGE - FOOTPATH RE- ALIGNMENT AS PER QUOTATION REF - 1590 TOPPING - DARK,13/07/2016,0000425452,"4,967.00",Revenue,WILLIAM PYE LTD,00031590
,,Regeneration,Other Misc,4851,Event Support for Windrush event on Sunday 26th June 2016,22/07/2016,0000425631,"1,500.00",Revenue,Windrush Initiatives,131990
,,Area 3 - Parks/Leyland East West,Capital Expenditure,C230,14 No SG250/1000 BOLLARDS IN HARDWOOD 50 No SG100/1000 BOLLARDS IN HARDWOOD EACH WITH 1 No 35mm DIA,08/07/2016,0000425406,"5,379.12",Revenue,WOODCSCAPE LIMITED,00113942
,,Property Services,Rep & Maint Premises,2020,Please attend ADDRESS REDACTED worden park to repair the leak from the heating pipe. Contact NAME REDACTED,20/07/2016,0000425584,102.95,Revenue,Wright Build Limited,131203
,,Property Services,Rep & Maint Premises,2024,Please supply & change the PRV & safety valve at Withy Grove pavilion,20/07/2016,0000425584,557.60,Revenue,Wright Build Limited,131203
,,Property Services,Rep & Maint Premises,2020,Please repair the tap to the vehicle power wash at Moss Side Depot,20/07/2016,0000425584,56.50,Revenue,Wright Build Limited,131203
,,Area 3 - Parks/Leyland East West,Professional Fees,4520,Hep B Vaccination - NAME REDACTED 5.4.16,15/07/2016,0000425539,25.00,Revenue,WRIGHTINGTON WIGAN & LEIGH NHS FOUNDATION TRUST,131288
,,Area 3 - Parks/Leyland East West,Professional Fees,4520,Hep B Vaccination - NAME REDACTED 26.4.06,15/07/2016,0000425539,25.00,Revenue,WRIGHTINGTON WIGAN & LEIGH NHS FOUNDATION TRUST,131288
,,Area 3 - Parks/Leyland East West,Professional Fees,4520,Hep B Blood Tests 5.4.16 NAMES REDACTED,15/07/2016,0000425539,140.00,Revenue,WRIGHTINGTON WIGAN & LEIGH NHS FOUNDATION TRUST,131288
,,Area 3 - Parks/Leyland East West,Professional Fees,4520,Hep B Vaccination - NAME REDACTED 3.5.16 (DID NOT ATTEND),15/07/2016,0000425539,25.00,Revenue,WRIGHTINGTON WIGAN & LEIGH NHS FOUNDATION TRUST,131288
,,Area 3 - Parks/Leyland East West,Professional Fees,4520,Hep B Blood Test - NAME REDACTED 31.5.16,15/07/2016,0000425539,28.00,Revenue,WRIGHTINGTON WIGAN & LEIGH NHS FOUNDATION TRUST,131288
,,Area 3 - Parks/Leyland East West,Professional Fees,4520,Hep B Blood Test - NAME REDACTED 24.5.16,15/07/2016,0000425539,28.00,Revenue,WRIGHTINGTON WIGAN & LEIGH NHS FOUNDATION TRUST,131288
